[Event "December 12 Late 2023"]
[Site "https://www.chess.com"]
[Date "2023.12.12"]
[Round "1"]
[White "Osmonbekov, Talaibek"]
[Black "Shubenkova, Veronika"]
[Result "1-0"]
[Board "120"]
[TimeControl "180+1"]
[WhiteFideId "2017253"]
[BlackFideId "44124040"]
[WhiteElo "2253"]
[BlackElo "2594"]
[WhiteTeam "USA"]
[BlackTeam "RUS"]
[WhiteClock "0:01:34"]
[BlackClock "0:01:43"]

1. d4 {[%clk 0:02:58]}  d5 {[%clk 0:02:59]} 2. Nc3 {[%clk 0:02:59]}  e6 {[%clk 0:02:59]} 3. Bf4 {[%clk 0:03:00]}  Bd6 {[%clk 0:02:58]} 4. e3 {[%clk 0:02:59]}  f5 {[%clk 0:02:55]} 5. Nf3 {[%clk 0:02:58]}  Nf6 {[%clk 0:02:55]} 6. Ne5 {[%clk 0:02:54]}  Qe7 {[%clk 0:02:54]} 7. Be2 {[%clk 0:02:47]}  O-O {[%clk 0:02:53]} 8. O-O {[%clk 0:02:45]}  c6 {[%clk 0:02:53]} 9. a3 {[%clk 0:02:28]}  Nbd7 {[%clk 0:02:52]} 10. b4 {[%clk 0:02:25]}  Ne4 {[%clk 0:02:49]} 11. Nxe4 {[%clk 0:02:15]}  fxe4 {[%clk 0:02:50]} 12. c4 {[%clk 0:02:13]}  a6 {[%clk 0:02:41]} 13. c5 {[%clk 0:02:11]}  Bb8 {[%clk 0:02:39]} 14. f3 {[%clk 0:01:58]}  Nxe5 {[%clk 0:02:38]} 15. dxe5 {[%clk 0:01:55]}  exf3 {[%clk 0:02:30]} 16. Rxf3 {[%clk 0:01:47]}  Bd7 {[%clk 0:02:30]} 17. Bd3 {[%clk 0:01:45]}  Be8 {[%clk 0:02:16]} 18. Qc2 {[%clk 0:01:38]}  h6 {[%clk 0:02:00]} 19. Raf1 {[%clk 0:01:38]}  Bh5 {[%clk 0:01:51]} 20. Bg5 {[%clk 0:01:36]}  hxg5 {[%clk 0:01:47]} 21. Rxf8+ {[%clk 0:01:34]}  Qxf8 {[%clk 0:01:43]} 22. Bh7+ {[%clk 0:01:34]} 1-0

[Event "December 12 Late 2023"]
[Site "https://www.chess.com"]
[Date "2023.12.12"]
[Round "1"]
[White "Grinev, Valeriy"]
[Black "youngdinousaur"]
[Result "1-0"]
[Board "121"]
[TimeControl "180+1"]
[WhiteFideId "14117517"]
[WhiteElo "2594"]
[BlackElo "2251"]
[WhiteTeam "UKR"]
[WhiteClock "0:00:37"]
[BlackClock "0:00:17"]

1. d4 {[%clk 0:03:00]}  Nf6 {[%clk 0:02:59]} 2. c4 {[%clk 0:03:01]}  e6 {[%clk 0:02:59]} 3. Nc3 {[%clk 0:03:01]}  Bb4 {[%clk 0:02:58]} 4. e3 {[%clk 0:03:00]}  d5 {[%clk 0:02:57]} 5. a3 {[%clk 0:02:59]}  Bxc3+ {[%clk 0:02:57]} 6. bxc3 {[%clk 0:03:00]}  O-O {[%clk 0:02:58]} 7. Bd3 {[%clk 0:02:56]}  c5 {[%clk 0:02:58]} 8. cxd5 {[%clk 0:02:51]}  exd5 {[%clk 0:02:57]} 9. Ne2 {[%clk 0:02:50]}  Nc6 {[%clk 0:02:57]} 10. O-O {[%clk 0:02:49]}  Re8 {[%clk 0:02:56]} 11. Ng3 {[%clk 0:02:48]}  c4 {[%clk 0:02:51]} 12. Bb1 {[%clk 0:02:45]}  b5 {[%clk 0:02:51]} 13. Ra2 {[%clk 0:02:41]}  a5 {[%clk 0:02:50]} 14. f3 {[%clk 0:02:39]}  Bb7 {[%clk 0:02:47]} 15. e4 {[%clk 0:02:39]}  Qb6 {[%clk 0:02:46]} 16. Kh1 {[%clk 0:02:33]}  b4 {[%clk 0:02:46]} 17. e5 {[%clk 0:02:33]}  Nd7 {[%clk 0:02:45]} 18. f4 {[%clk 0:02:24]}  bxc3 {[%clk 0:02:39]} 19. Be3 {[%clk 0:02:22]}  Nf8 {[%clk 0:02:29]} 20. Bg1 {[%clk 0:02:05]}  Bc8 {[%clk 0:02:07]} 21. f5 {[%clk 0:02:04]}  Rb8 {[%clk 0:02:06]} 22. Nh5 {[%clk 0:01:58]}  Qb3 {[%clk 0:01:07]} 23. Qg4 {[%clk 0:01:49]}  Ng6 {[%clk 0:01:07]} 24. Raf2 {[%clk 0:01:38]}  Qxb1 {[%clk 0:01:02]} 25. Rxb1 {[%clk 0:01:21]}  Rxb1 {[%clk 0:01:03]} 26. Qg5 {[%clk 0:01:10]}  Nxd4 {[%clk 0:00:33]} 27. fxg6 {[%clk 0:01:06]}  hxg6 {[%clk 0:00:31]} 28. Qf4 {[%clk 0:00:55]}  Nf5 {[%clk 0:00:18]} 29. Ng3 {[%clk 0:00:48]}  Nxg3+ {[%clk 0:00:17]} 30. hxg3 {[%clk 0:00:47]}  Bf5 {[%clk 0:00:18]} 31. g4 {[%clk 0:00:46]}  Be6 {[%clk 0:00:18]} 32. Qd4 {[%clk 0:00:43]}  Reb8 {[%clk 0:00:18]} 33. Qxc3 {[%clk 0:00:42]}  R8b3 {[%clk 0:00:19]} 34. Qxa5 {[%clk 0:00:41]}  Ra1 {[%clk 0:00:18]} 35. Rf3 {[%clk 0:00:37]}  Rbb1 {[%clk 0:00:18]} 36. Qd8+ {[%clk 0:00:36]}  Kh7 {[%clk 0:00:17]} 37. Rh3# {[%clk 0:00:37]} 1-0

[Event "December 12 Late 2023"]
[Site "https://www.chess.com"]
[Date "2023.12.12"]
[Round "1"]
[White "Awoki, Daniel Teidi"]
[Black "Taboas Rodriguez, Daniel"]
[Result "1-0"]
[Board "124"]
[TimeControl "180+1"]
[WhiteFideId "2100827"]
[BlackFideId "2208466"]
[WhiteElo "2236"]
[BlackElo "2586"]
[WhiteTeam "BRA"]
[BlackTeam "ESP"]
[WhiteClock "0:00:14"]
[BlackClock "0:00:25"]

1. e4 {[%clk 0:02:36]}  e5 {[%clk 0:02:57]} 2. Nf3 {[%clk 0:02:32]}  Nc6 {[%clk 0:02:49]} 3. Bc4 {[%clk 0:02:32]}  Bc5 {[%clk 0:02:48]} 4. O-O {[%clk 0:02:32]}  Nf6 {[%clk 0:02:48]} 5. d3 {[%clk 0:02:32]}  d6 {[%clk 0:02:48]} 6. c3 {[%clk 0:02:33]}  a6 {[%clk 0:02:47]} 7. Bb3 {[%clk 0:02:32]}  Ba7 {[%clk 0:02:47]} 8. Re1 {[%clk 0:02:32]}  Be6 {[%clk 0:02:43]} 9. Bc2 {[%clk 0:02:31]}  O-O {[%clk 0:02:42]} 10. h3 {[%clk 0:02:31]}  h6 {[%clk 0:02:41]} 11. Nbd2 {[%clk 0:02:31]}  Ne7 {[%clk 0:02:37]} 12. Nf1 {[%clk 0:02:32]}  Ng6 {[%clk 0:02:36]} 13. Ng3 {[%clk 0:02:32]}  Qd7 {[%clk 0:02:34]} 14. Be3 {[%clk 0:02:31]}  Bxh3 {[%clk 0:02:33]} 15. Bxa7 {[%clk 0:01:49]}  Rxa7 {[%clk 0:02:32]} 16. gxh3 {[%clk 0:01:40]}  Qxh3 {[%clk 0:02:33]} 17. Re3 {[%clk 0:01:40]}  Ng4 {[%clk 0:02:31]} 18. Qf1 {[%clk 0:01:37]}  Qxf1+ {[%clk 0:01:55]} 19. Nxf1 {[%clk 0:01:38]}  Nxe3 {[%clk 0:01:56]} 20. Nxe3 {[%clk 0:01:39]}  Nf4 {[%clk 0:01:53]} 21. Ng2 {[%clk 0:01:35]}  Nxg2 {[%clk 0:01:52]} 22. Kxg2 {[%clk 0:01:35]}  f5 {[%clk 0:01:52]} 23. exf5 {[%clk 0:01:35]}  Rxf5 {[%clk 0:01:53]} 24. d4 {[%clk 0:01:34]}  Rf4 {[%clk 0:01:38]} 25. dxe5 {[%clk 0:01:33]}  dxe5 {[%clk 0:01:39]} 26. Nxe5 {[%clk 0:01:31]}  Rf6 {[%clk 0:01:27]} 27. Rd1 {[%clk 0:01:25]}  Rd6 {[%clk 0:01:25]} 28. Bb3+ {[%clk 0:01:18]}  Kf8 {[%clk 0:01:20]} 29. Rxd6 {[%clk 0:01:01]}  cxd6 {[%clk 0:01:20]} 30. Nc4 {[%clk 0:01:02]}  Ke7 {[%clk 0:01:19]} 31. Nb6 {[%clk 0:01:02]}  Kd8 {[%clk 0:01:14]} 32. a4 {[%clk 0:01:01]}  a5 {[%clk 0:01:13]} 33. Bc4 {[%clk 0:00:55]}  Kc7 {[%clk 0:01:12]} 34. Nd5+ {[%clk 0:00:54]}  Kc6 {[%clk 0:01:12]} 35. Kf3 {[%clk 0:00:36]}  Ra8 {[%clk 0:01:11]} 36. Ke4 {[%clk 0:00:36]}  Re8+ {[%clk 0:01:01]} 37. Kd4 {[%clk 0:00:36]}  Kd7 {[%clk 0:00:33]} 38. Bb5+ {[%clk 0:00:36]}  Kd8 {[%clk 0:00:33]} 39. Bxe8 {[%clk 0:00:36]}  Kxe8 {[%clk 0:00:34]} 40. b4 {[%clk 0:00:32]}  Kd7 {[%clk 0:00:27]} 41. bxa5 {[%clk 0:00:31]}  Kc6 {[%clk 0:00:27]} 42. Nb4+ {[%clk 0:00:26]}  Kd7 {[%clk 0:00:27]} 43. a6 {[%clk 0:00:24]}  bxa6 {[%clk 0:00:27]} 44. Nxa6 {[%clk 0:00:25]}  h5 {[%clk 0:00:27]} 45. Nb4 {[%clk 0:00:18]}  g5 {[%clk 0:00:25]} 46. a5 {[%clk 0:00:17]}  h4 {[%clk 0:00:22]} 47. Ke4 {[%clk 0:00:15]}  g4 {[%clk 0:00:19]} 48. Kf4 {[%clk 0:00:15]}  h3 {[%clk 0:00:19]} 49. Kg3 {[%clk 0:00:15]}  Kc7 {[%clk 0:00:19]} 50. f3 {[%clk 0:00:12]}  gxf3 {[%clk 0:00:19]} 51. Kxh3 {[%clk 0:00:12]}  d5 {[%clk 0:00:16]} 52. Kg3 {[%clk 0:00:12]}  Kd6 {[%clk 0:00:16]} 53. Kxf3 {[%clk 0:00:12]}  Kc5 {[%clk 0:00:17]} 54. a6 {[%clk 0:00:12]}  Kb6 {[%clk 0:00:17]} 55. Ke3 {[%clk 0:00:12]}  Ka7 {[%clk 0:00:17]} 56. Kd4 {[%clk 0:00:13]}  Kb6 {[%clk 0:00:18]} 57. Kxd5 {[%clk 0:00:13]}  Ka7 {[%clk 0:00:19]} 58. Kc6 {[%clk 0:00:13]}  Ka8 {[%clk 0:00:19]} 59. Kb6 {[%clk 0:00:13]}  Kb8 {[%clk 0:00:19]} 60. Nd5 {[%clk 0:00:13]}  Ka8 {[%clk 0:00:20]} 61. Nc7+ {[%clk 0:00:14]}  Kb8 {[%clk 0:00:21]} 62. a7+ {[%clk 0:00:14]}  Kc8 {[%clk 0:00:22]} 63. a8=Q+ {[%clk 0:00:14]}  Kd7 {[%clk 0:00:22]} 64. Qd5+ {[%clk 0:00:14]}  Ke7 {[%clk 0:00:23]} 65. Qe6+ {[%clk 0:00:14]}  Kf8 {[%clk 0:00:24]} 66. Qd7 {[%clk 0:00:13]}  Kg8 {[%clk 0:00:24]} 67. Ne6 {[%clk 0:00:14]}  Kh8 {[%clk 0:00:25]} 68. Qg7# {[%clk 0:00:14]} 1-0

[Event "December 12 Late 2023"]
[Site "https://www.chess.com"]
[Date "2023.12.12"]
[Round "1"]
[White "Fernandez Hernandez, Gerardo"]
[Black "Mendez Fortes, Eduardo Jesus"]
[Result "0-1"]
[Board "126"]
[TimeControl "180+1"]
[WhiteFideId "2207400"]
[BlackFideId "3502376"]
[WhiteElo "2227"]
[BlackElo "2582"]
[WhiteTeam "ESP"]
[BlackTeam "CUB"]
[WhiteClock "0:01:11"]
[BlackClock "0:01:26"]

1. e4 {[%clk 0:03:00]}  c5 {[%clk 0:02:19]} 2. d3 {[%clk 0:03:00]}  Nc6 {[%clk 0:02:14]} 3. g3 {[%clk 0:03:00]}  g6 {[%clk 0:02:14]} 4. Bg2 {[%clk 0:03:01]}  Bg7 {[%clk 0:02:15]} 5. f4 {[%clk 0:03:01]}  d6 {[%clk 0:02:13]} 6. Nf3 {[%clk 0:03:01]}  e6 {[%clk 0:02:14]} 7. O-O {[%clk 0:03:01]}  Nge7 {[%clk 0:02:14]} 8. c3 {[%clk 0:03:02]}  O-O {[%clk 0:02:13]} 9. Be3 {[%clk 0:03:02]}  b6 {[%clk 0:02:12]} 10. d4 {[%clk 0:03:02]}  cxd4 {[%clk 0:02:12]} 11. cxd4 {[%clk 0:03:03]}  d5 {[%clk 0:02:11]} 12. e5 {[%clk 0:03:03]}  Ba6 {[%clk 0:02:08]} 13. Re1 {[%clk 0:03:02]}  Rc8 {[%clk 0:02:07]} 14. Bf1 {[%clk 0:02:31]}  Bxf1 {[%clk 0:02:06]} 15. Rxf1 {[%clk 0:02:32]}  Na5 {[%clk 0:02:07]} 16. b3 {[%clk 0:02:31]}  Qc7 {[%clk 0:02:06]} 17. Na3 {[%clk 0:02:20]}  Qc3 {[%clk 0:01:46]} 18. Qd2 {[%clk 0:02:00]}  Nf5 {[%clk 0:01:43]} 19. Bf2 {[%clk 0:01:56]}  Qxf3 {[%clk 0:01:42]} 20. Nb5 {[%clk 0:01:41]}  a6 {[%clk 0:01:39]} 21. Nd6 {[%clk 0:01:31]}  Nxd6 {[%clk 0:01:38]} 22. exd6 {[%clk 0:01:32]}  Qc3 {[%clk 0:01:31]} 23. Qxc3 {[%clk 0:01:31]}  Rxc3 {[%clk 0:01:32]} 24. Be1 {[%clk 0:01:30]}  Rc6 {[%clk 0:01:31]} 25. Bxa5 {[%clk 0:01:29]}  bxa5 {[%clk 0:01:31]} 26. Rfd1 {[%clk 0:01:30]}  Rxd6 {[%clk 0:01:31]} 27. Rac1 {[%clk 0:01:30]}  Rb6 {[%clk 0:01:29]} 28. Rc7 {[%clk 0:01:28]}  Rb4 {[%clk 0:01:29]} 29. Rc6 {[%clk 0:01:23]}  a4 {[%clk 0:01:28]} 30. Rxa6 {[%clk 0:01:16]}  axb3 {[%clk 0:01:28]} 31. a3 {[%clk 0:01:17]}  Rb7 {[%clk 0:01:26]} 32. Kf2 {[%clk 0:01:14]}  b2 {[%clk 0:01:26]} 33. Rb1 {[%clk 0:01:11]}  Rc8 {[%clk 0:01:26]} 0-1

[Event "December 12 Late 2023"]
[Site "https://www.chess.com"]
[Date "2023.12.12"]
[Round "1"]
[White "Khater, Sherif"]
[Black "De Souza, Cristiano Gomes"]
[Result "1/2-1/2"]
[Board "127"]
[TimeControl "180+1"]
[WhiteFideId "2034280"]
[BlackFideId "2151758"]
[WhiteElo "2581"]
[BlackElo "2226"]
[WhiteTeam "USA"]
[BlackTeam "BRA"]
[WhiteClock "0:01:36"]
[BlackClock "0:02:01"]

1. Nf3 {[%clk 0:02:57]}  Nf6 {[%clk 0:02:59]} 2. b3 {[%clk 0:02:57]}  g6 {[%clk 0:02:59]} 3. Bb2 {[%clk 0:02:58]}  Bg7 {[%clk 0:02:59]} 4. e3 {[%clk 0:02:59]}  O-O {[%clk 0:02:59]} 5. Be2 {[%clk 0:02:57]}  c5 {[%clk 0:02:59]} 6. O-O {[%clk 0:02:57]}  Nc6 {[%clk 0:02:59]} 7. Ne5 {[%clk 0:02:56]}  Nxe5 {[%clk 0:02:59]} 8. Bxe5 {[%clk 0:02:55]}  d6 {[%clk 0:02:58]} 9. Bb2 {[%clk 0:02:54]}  Bd7 {[%clk 0:02:58]} 10. Bf3 {[%clk 0:02:51]}  Qc7 {[%clk 0:02:58]} 11. Nc3 {[%clk 0:02:49]}  Bc6 {[%clk 0:02:59]} 12. Bxc6 {[%clk 0:02:49]}  Qxc6 {[%clk 0:02:59]} 13. Qf3 {[%clk 0:02:48]}  Qxf3 {[%clk 0:02:57]} 14. gxf3 {[%clk 0:02:49]}  a6 {[%clk 0:02:54]} 15. Kg2 {[%clk 0:02:46]}  b5 {[%clk 0:02:53]} 16. Rab1 {[%clk 0:02:46]}  b4 {[%clk 0:02:53]} 17. Ne4 {[%clk 0:02:46]}  Nxe4 {[%clk 0:02:52]} 18. fxe4 {[%clk 0:02:47]}  Bxb2 {[%clk 0:02:50]} 19. Rxb2 {[%clk 0:02:48]}  f5 {[%clk 0:02:49]} 20. exf5 {[%clk 0:02:47]}  Rxf5 {[%clk 0:02:50]} 21. f4 {[%clk 0:02:45]}  Raf8 {[%clk 0:02:48]} 22. c3 {[%clk 0:02:43]}  a5 {[%clk 0:02:44]} 23. cxb4 {[%clk 0:02:43]}  axb4 {[%clk 0:02:45]} 24. d3 {[%clk 0:02:41]}  e5 {[%clk 0:02:45]} 25. Rbf2 {[%clk 0:02:40]}  exf4 {[%clk 0:02:36]} 26. exf4 {[%clk 0:02:32]}  g5 {[%clk 0:02:34]} 27. Kg3 {[%clk 0:02:12]}  Kg7 {[%clk 0:02:32]} 28. Kg4 {[%clk 0:02:10]}  Kg6 {[%clk 0:02:28]} 29. Kg3 {[%clk 0:02:03]}  h5 {[%clk 0:02:26]} 30. h3 {[%clk 0:02:01]}  d5 {[%clk 0:02:17]} 31. Rf3 {[%clk 0:01:55]}  Rxf4 {[%clk 0:02:14]} 32. Rxf4 {[%clk 0:01:55]}  Rxf4 {[%clk 0:02:13]} 33. Rxf4 {[%clk 0:01:56]}  gxf4+ {[%clk 0:02:13]} 34. Kxf4 {[%clk 0:01:56]}  Kf6 {[%clk 0:02:12]} 35. h4 {[%clk 0:01:42]}  d4 {[%clk 0:02:04]} 36. Ke4 {[%clk 0:01:38]}  Ke6 {[%clk 0:02:01]} 37. Kf4 {[%clk 0:01:35]}  Kf6 {[%clk 0:02:00]} 38. Ke4 {[%clk 0:01:35]}  Ke6 {[%clk 0:02:00]} 39. Kf4 {[%clk 0:01:36]}  Kf6 {[%clk 0:02:01]} 1/2-1/2

[Event "December 12 Late 2023"]
[Site "https://www.chess.com"]
[Date "2023.12.12"]
[Round "1"]
[White "CarlMagnuson"]
[Black "Laddha, Shubh Jayesh"]
[Result "0-1"]
[Board "128"]
[TimeControl "180+1"]
[BlackFideId "30942799"]
[WhiteElo "2225"]
[BlackElo "2578"]
[BlackTeam "USA"]
[WhiteClock "0:00:17"]
[BlackClock "0:00:31"]

1. e4 {[%clk 0:03:00]}  d6 {[%clk 0:02:59]} 2. d4 {[%clk 0:03:00]}  Nf6 {[%clk 0:02:59]} 3. Bd3 {[%clk 0:02:59]}  c6 {[%clk 0:02:58]} 4. f4 {[%clk 0:02:59]}  Qb6 {[%clk 0:02:56]} 5. Nf3 {[%clk 0:02:58]}  Bg4 {[%clk 0:02:55]} 6. c3 {[%clk 0:02:58]}  Nbd7 {[%clk 0:02:48]} 7. Qe2 {[%clk 0:02:58]}  e5 {[%clk 0:02:47]} 8. Be3 {[%clk 0:02:54]}  Qc7 {[%clk 0:02:41]} 9. Nbd2 {[%clk 0:02:51]}  Be7 {[%clk 0:02:38]} 10. O-O {[%clk 0:02:50]}  O-O {[%clk 0:02:37]} 11. h3 {[%clk 0:02:49]}  Bxf3 {[%clk 0:02:37]} 12. Nxf3 {[%clk 0:02:47]}  Rfe8 {[%clk 0:02:36]} 13. f5 {[%clk 0:02:42]}  Bf8 {[%clk 0:02:35]} 14. Qf2 {[%clk 0:02:42]}  exd4 {[%clk 0:02:31]} 15. Bxd4 {[%clk 0:02:41]}  Nxe4 {[%clk 0:02:28]} 16. Qh4 {[%clk 0:02:36]}  Ndf6 {[%clk 0:02:18]} 17. Rae1 {[%clk 0:02:30]}  c5 {[%clk 0:02:04]} 18. Be3 {[%clk 0:02:16]}  d5 {[%clk 0:01:59]} 19. Bf4 {[%clk 0:02:13]}  Qb6 {[%clk 0:01:55]} 20. Kh1 {[%clk 0:02:04]}  Qxb2 {[%clk 0:01:51]} 21. Ng5 {[%clk 0:01:44]}  Qxc3 {[%clk 0:01:39]} 22. Bb5 {[%clk 0:01:26]}  h6 {[%clk 0:01:29]} 23. Nxe4 {[%clk 0:01:20]}  Rxe4 {[%clk 0:01:29]} 24. Rxe4 {[%clk 0:01:17]}  Nxe4 {[%clk 0:01:29]} 25. Qg4 {[%clk 0:01:01]}  Nf6 {[%clk 0:01:24]} 26. Qd1 {[%clk 0:00:53]}  c4 {[%clk 0:01:18]} 27. Re1 {[%clk 0:00:47]}  a6 {[%clk 0:01:17]} 28. Be5 {[%clk 0:00:47]}  Qb4 {[%clk 0:01:00]} 29. Ba4 {[%clk 0:00:44]}  Ne4 {[%clk 0:00:59]} 30. Rf1 {[%clk 0:00:25]}  Rd8 {[%clk 0:00:44]} 31. Bc2 {[%clk 0:00:19]}  Qe7 {[%clk 0:00:37]} 32. Qd4 {[%clk 0:00:19]}  Qc5 {[%clk 0:00:32]} 33. Qd1 {[%clk 0:00:18]}  Nf2+ {[%clk 0:00:30]} 34. Rxf2 {[%clk 0:00:17]}  Qxf2 {[%clk 0:00:31]} 0-1

[Event "December 12 Late 2023"]
[Site "https://www.chess.com"]
[Date "2023.12.12"]
[Round "1"]
[White "Sivakumar, Shaaketh"]
[Black "Wang, Alexander J"]
[Result "1-0"]
[Board "131"]
[TimeControl "180+1"]
[WhiteFideId "30940176"]
[BlackFideId "30955270"]
[WhiteElo "2567"]
[BlackElo "2217"]
[WhiteTeam "USA"]
[BlackTeam "USA"]
[WhiteClock "0:00:40"]
[BlackClock "0:00:03"]

1. c4 {[%clk 0:02:23]}  e6 {[%clk 0:02:47]} 2. Nf3 {[%clk 0:02:24]}  d5 {[%clk 0:02:46]} 3. g3 {[%clk 0:02:23]}  Nf6 {[%clk 0:02:40]} 4. Bg2 {[%clk 0:02:23]}  c5 {[%clk 0:02:39]} 5. O-O {[%clk 0:02:15]}  d4 {[%clk 0:02:32]} 6. e3 {[%clk 0:02:13]}  Nc6 {[%clk 0:02:31]} 7. b4 {[%clk 0:02:11]}  e5 {[%clk 0:02:26]} 8. b5 {[%clk 0:02:06]}  Nb4 {[%clk 0:02:16]} 9. Nxe5 {[%clk 0:02:06]}  Bd6 {[%clk 0:02:15]} 10. exd4 {[%clk 0:02:05]}  cxd4 {[%clk 0:02:07]} 11. Nf3 {[%clk 0:01:58]}  O-O {[%clk 0:02:00]} 12. d3 {[%clk 0:01:56]}  Bf5 {[%clk 0:01:49]} 13. Ne1 {[%clk 0:01:31]}  Qa5 {[%clk 0:01:11]} 14. a3 {[%clk 0:01:20]}  Bg4 {[%clk 0:00:22]} 15. Qb3 {[%clk 0:01:04]}  Be2 {[%clk 0:00:15]} 16. Bd2 {[%clk 0:01:05]}  Bxf1 {[%clk 0:00:15]} 17. Bxf1 {[%clk 0:01:05]}  a6 {[%clk 0:00:09]} 18. Bxb4 {[%clk 0:01:02]}  Bxb4 {[%clk 0:00:09]} 19. Qxb4 {[%clk 0:01:03]}  Qxb4 {[%clk 0:00:10]} 20. axb4 {[%clk 0:01:04]}  axb5 {[%clk 0:00:10]} 21. Rxa8 {[%clk 0:00:54]}  Rxa8 {[%clk 0:00:11]} 22. Nc2 {[%clk 0:00:50]}  bxc4 {[%clk 0:00:07]} 23. dxc4 {[%clk 0:00:51]}  Ra2 {[%clk 0:00:07]} 24. Bd3 {[%clk 0:00:51]}  Rb2 {[%clk 0:00:05]} 25. Nd2 {[%clk 0:00:46]}  Nd7 {[%clk 0:00:05]} 26. Nf3 {[%clk 0:00:43]}  Rb1+ {[%clk 0:00:04]} 27. Kg2 {[%clk 0:00:42]}  Rd1 {[%clk 0:00:05]} 28. Be2 {[%clk 0:00:41]}  Rc1 {[%clk 0:00:03]} 29. Nfxd4 {[%clk 0:00:41]}  Ne5 {[%clk 0:00:03]} 30. c5 {[%clk 0:00:42]}  Nc6 {[%clk 0:00:02]} 31. Nxc6 {[%clk 0:00:42]}  bxc6 {[%clk 0:00:03]} 32. Nd4 {[%clk 0:00:42]}  Rb1 {[%clk 0:00:02]} 33. Nxc6 {[%clk 0:00:40]}  Rb2 {[%clk 0:00:03]} 1-0

[Event "December 12 Late 2023"]
[Site "https://www.chess.com"]
[Date "2023.12.12"]
[Round "1"]
[White "Clarke, Matthew"]
[Black "Liang, Justin"]
[Result "1-0"]
[Board "132"]
[TimeControl "180+1"]
[WhiteFideId "3227804"]
[BlackFideId "2099942"]
[WhiteElo "2214"]
[BlackElo "2566"]
[WhiteTeam "AUS"]
[BlackTeam "USA"]
[WhiteClock "0:00:10"]
[BlackClock "0:00:04"]

1. d4 {[%clk 0:03:00]}  Nf6 {[%clk 0:02:59]} 2. c4 {[%clk 0:03:01]}  e6 {[%clk 0:02:59]} 3. g3 {[%clk 0:03:01]}  d5 {[%clk 0:02:59]} 4. Bg2 {[%clk 0:03:02]}  Bb4+ {[%clk 0:02:59]} 5. Bd2 {[%clk 0:02:59]}  Be7 {[%clk 0:02:58]} 6. Nf3 {[%clk 0:02:58]}  O-O {[%clk 0:02:58]} 7. O-O {[%clk 0:02:58]}  c6 {[%clk 0:02:57]} 8. b3 {[%clk 0:02:49]}  Ne4 {[%clk 0:02:57]} 9. Nc3 {[%clk 0:02:44]}  f5 {[%clk 0:02:55]} 10. Qc2 {[%clk 0:02:35]}  Nd7 {[%clk 0:02:52]} 11. h4 {[%clk 0:02:11]}  h6 {[%clk 0:02:47]} 12. Rfd1 {[%clk 0:01:50]}  Bf6 {[%clk 0:02:40]} 13. b4 {[%clk 0:01:36]}  a6 {[%clk 0:02:30]} 14. Be1 {[%clk 0:01:26]}  g5 {[%clk 0:02:26]} 15. hxg5 {[%clk 0:01:25]}  hxg5 {[%clk 0:02:27]} 16. a4 {[%clk 0:01:24]}  Rf7 {[%clk 0:02:21]} 17. e3 {[%clk 0:01:18]}  Rh7 {[%clk 0:01:57]} 18. b5 {[%clk 0:01:02]}  Qf8 {[%clk 0:01:40]} 19. Nxe4 {[%clk 0:00:57]}  fxe4 {[%clk 0:01:40]} 20. Nh2 {[%clk 0:00:56]}  Be7 {[%clk 0:01:23]} 21. bxc6 {[%clk 0:00:41]}  bxc6 {[%clk 0:00:45]} 22. cxd5 {[%clk 0:00:41]}  cxd5 {[%clk 0:00:30]} 23. Qc6 {[%clk 0:00:39]}  Rb8 {[%clk 0:00:19]} 24. Qxe6+ {[%clk 0:00:38]}  Qf7 {[%clk 0:00:19]} 25. Bh3 {[%clk 0:00:25]}  Nf6 {[%clk 0:00:13]} 26. Qxf7+ {[%clk 0:00:25]}  Kxf7 {[%clk 0:00:14]} 27. Bxc8 {[%clk 0:00:24]}  Rxc8 {[%clk 0:00:14]} 28. Rdc1 {[%clk 0:00:17]}  Rhh8 {[%clk 0:00:14]} 29. Rab1 {[%clk 0:00:17]}  Rc4 {[%clk 0:00:11]} 30. Rxc4 {[%clk 0:00:17]}  dxc4 {[%clk 0:00:12]} 31. Rb7 {[%clk 0:00:12]}  Ke6 {[%clk 0:00:06]} 32. Rb6+ {[%clk 0:00:10]}  Kf5 {[%clk 0:00:05]} 33. Rc6 {[%clk 0:00:09]}  Rc8 {[%clk 0:00:06]} 34. Rxc8 {[%clk 0:00:09]}  Nd5 {[%clk 0:00:07]} 35. Rxc4 {[%clk 0:00:09]}  Bd6 {[%clk 0:00:07]} 36. g4+ {[%clk 0:00:09]}  Ke6 {[%clk 0:00:07]} 37. Rc6 {[%clk 0:00:09]}  Kd7 {[%clk 0:00:07]} 38. Rxa6 {[%clk 0:00:09]}  Nc7 {[%clk 0:00:08]} 39. Rxd6+ {[%clk 0:00:08]}  Kxd6 {[%clk 0:00:06]} 40. a5 {[%clk 0:00:08]}  Kc6 {[%clk 0:00:06]} 41. Nf1 {[%clk 0:00:09]}  Kb5 {[%clk 0:00:07]} 42. Ng3 {[%clk 0:00:10]}  Nd5 {[%clk 0:00:04]} 43. Nxe4 {[%clk 0:00:10]} 1-0

[Event "December 12 Late 2023"]
[Site "https://www.chess.com"]
[Date "2023.12.12"]
[Round "1"]
[White "Janaszak, Dawid"]
[Black "Floresvillar Gonzalez, Luis Migu"]
[Result "1-0"]
[Board "133"]
[TimeControl "180+1"]
[WhiteFideId "1119206"]
[BlackFideId "5100542"]
[WhiteElo "2565"]
[BlackElo "2212"]
[WhiteTeam "POL"]
[BlackTeam "MEX"]
[WhiteClock "0:01:53"]
[BlackClock "0:01:41"]

1. e4 {[%clk 0:03:00]}  c6 {[%clk 0:02:59]} 2. d4 {[%clk 0:03:00]}  d5 {[%clk 0:03:00]} 3. exd5 {[%clk 0:03:01]}  cxd5 {[%clk 0:02:59]} 4. Bd3 {[%clk 0:03:02]}  Nc6 {[%clk 0:02:56]} 5. c3 {[%clk 0:03:02]}  Qc7 {[%clk 0:02:56]} 6. Ne2 {[%clk 0:03:01]}  Bg4 {[%clk 0:02:53]} 7. O-O {[%clk 0:03:01]}  Bxe2 {[%clk 0:02:51]} 8. Qxe2 {[%clk 0:03:02]}  Nf6 {[%clk 0:02:50]} 9. Nd2 {[%clk 0:03:01]}  e6 {[%clk 0:02:49]} 10. f4 {[%clk 0:03:01]}  g6 {[%clk 0:02:47]} 11. Nf3 {[%clk 0:03:01]}  Bg7 {[%clk 0:02:42]} 12. Ne5 {[%clk 0:03:01]}  a6 {[%clk 0:02:40]} 13. Bd2 {[%clk 0:02:58]}  b5 {[%clk 0:02:40]} 14. a4 {[%clk 0:02:57]}  b4 {[%clk 0:02:33]} 15. Bxa6 {[%clk 0:02:56]}  Nxe5 {[%clk 0:02:25]} 16. fxe5 {[%clk 0:02:54]}  Ne4 {[%clk 0:02:22]} 17. Bb5+ {[%clk 0:02:52]}  Kf8 {[%clk 0:02:21]} 18. cxb4 {[%clk 0:02:46]}  Nxd2 {[%clk 0:02:14]} 19. Qxd2 {[%clk 0:02:44]}  h5 {[%clk 0:02:12]} 20. Rac1 {[%clk 0:02:41]}  Qb6 {[%clk 0:02:12]} 21. Rc6 {[%clk 0:02:38]}  Qa7 {[%clk 0:02:07]} 22. Ra6 {[%clk 0:02:26]}  Qb8 {[%clk 0:02:04]} 23. Rxa8 {[%clk 0:02:23]}  Qxa8 {[%clk 0:02:04]} 24. Qf4 {[%clk 0:02:06]}  Qa7 {[%clk 0:02:00]} 25. Rc1 {[%clk 0:01:54]}  Bh6 {[%clk 0:01:55]} 26. Rc8+ {[%clk 0:01:53]}  Kg7 {[%clk 0:01:41]} 27. Qf6+ {[%clk 0:01:53]} 1-0